[Event "Titled Tuesday Blitz November 14 Late 2023"]
[White "Ozates, Tuna"]
[Black "mind1mover"]
[WhiteFideId "6354521"]
[WhiteElo "2556"]
[BlackElo "2805"]
[Result "0-1"]
[Round "4"]
[TimeControl "180+1"]
[Date "2023.11.14"]
[WhiteClock "0:00:06"]
[BlackClock "0:00:07"]
[Board "35"]

1. e4 {[%clk 0:03:00]}  c5 {[%clk 0:02:57]} 2. Nf3 {[%clk 0:02:57]}  Nc6 {[%clk 0:02:57]} 3. Nc3 {[%clk 0:02:56]}  e6 {[%clk 0:02:49]} 4. d4 {[%clk 0:02:54]}  cxd4 {[%clk 0:02:50]} 5. Nxd4 {[%clk 0:02:54]}  Qc7 {[%clk 0:02:48]} 6. g3 {[%clk 0:02:54]}  a6 {[%clk 0:02:47]} 7. Bg2 {[%clk 0:02:54]}  h5 {[%clk 0:02:48]} 8. h3 {[%clk 0:02:51]}  h4 {[%clk 0:02:41]} 9. g4 {[%clk 0:02:51]}  Nge7 {[%clk 0:02:39]} 10. Be3 {[%clk 0:02:47]}  Ng6 {[%clk 0:02:31]} 11. Qd2 {[%clk 0:02:42]}  Nxd4 {[%clk 0:02:24]} 12. Qxd4 {[%clk 0:02:31]}  Bd6 {[%clk 0:02:23]} 13. O-O-O {[%clk 0:02:20]}  Be5 {[%clk 0:02:18]} 14. Qc5 {[%clk 0:02:13]}  Qxc5 {[%clk 0:02:12]} 15. Bxc5 {[%clk 0:02:14]}  Nf4 {[%clk 0:02:03]} 16. Bf1 {[%clk 0:02:12]}  g5 {[%clk 0:01:49]} 17. Ne2 {[%clk 0:02:10]}  b5 {[%clk 0:01:44]} 18. Nxf4 {[%clk 0:02:06]}  Bxf4+ {[%clk 0:01:45]} 19. Kb1 {[%clk 0:02:06]}  Bb7 {[%clk 0:01:42]} 20. f3 {[%clk 0:02:07]}  Be5 {[%clk 0:01:37]} 21. Bd6 {[%clk 0:01:58]}  Bxd6 {[%clk 0:01:34]} 22. Rxd6 {[%clk 0:01:59]}  Ke7 {[%clk 0:01:34]} 23. Rb6 {[%clk 0:01:53]}  Bc6 {[%clk 0:01:30]} 24. c4 {[%clk 0:01:46]}  Rhb8 {[%clk 0:00:48]} 25. Rxb8 {[%clk 0:01:43]}  Rxb8 {[%clk 0:00:49]} 26. cxb5 {[%clk 0:01:27]}  axb5 {[%clk 0:00:50]} 27. Bd3 {[%clk 0:01:23]}  Kf6 {[%clk 0:00:46]} 28. Rc1 {[%clk 0:01:17]}  Ke5 {[%clk 0:00:44]} 29. Rc3 {[%clk 0:01:13]}  Kf4 {[%clk 0:00:41]} 30. Bf1 {[%clk 0:01:01]}  b4 {[%clk 0:00:41]} 31. Rc5 {[%clk 0:00:53]}  f6 {[%clk 0:00:32]} 32. Be2 {[%clk 0:00:53]}  Kg3 {[%clk 0:00:27]} 33. e5 {[%clk 0:00:53]}  fxe5 {[%clk 0:00:21]} 34. Rxe5 {[%clk 0:00:54]}  Kxh3 {[%clk 0:00:17]} 35. Rxg5 {[%clk 0:00:54]}  Rh8 {[%clk 0:00:17]} 36. Rh5 {[%clk 0:00:47]}  Rf8 {[%clk 0:00:17]} 37. g5 {[%clk 0:00:41]}  Bxf3 {[%clk 0:00:13]} 38. Bxf3 {[%clk 0:00:39]}  Rxf3 {[%clk 0:00:14]} 39. Rh7 {[%clk 0:00:40]}  Rg3 {[%clk 0:00:07]} 40. Rxd7 {[%clk 0:00:39]}  Rxg5 {[%clk 0:00:07]} 41. Re7 {[%clk 0:00:30]}  e5 {[%clk 0:00:05]} 42. Kc2 {[%clk 0:00:29]}  Kg2 {[%clk 0:00:05]} 43. Kb3 {[%clk 0:00:18]}  h3 {[%clk 0:00:05]} 44. Kxb4 {[%clk 0:00:17]}  Rh5 {[%clk 0:00:04]} 45. Rg7+ {[%clk 0:00:14]}  Kf2 {[%clk 0:00:04]} 46. Rf7+ {[%clk 0:00:14]}  Ke2 {[%clk 0:00:04]} 47. Rc7 {[%clk 0:00:11]}  Kd2 {[%clk 0:00:03]} 48. Rd7+ {[%clk 0:00:09]}  Kc2 {[%clk 0:00:03]} 49. a4 {[%clk 0:00:05]}  h2 {[%clk 0:00:03]} 50. Rc7+ {[%clk 0:00:05]}  Kxb2 {[%clk 0:00:03]} 51. a5 {[%clk 0:00:05]}  h1=Q {[%clk 0:00:02]} 52. a6 {[%clk 0:00:06]}  Rh4+ {[%clk 0:00:02]} 53. Ka5 {[%clk 0:00:06]}  Qd5+ {[%clk 0:00:03]} 54. Kb6 {[%clk 0:00:07]}  Rb4+ {[%clk 0:00:03]} 55. Ka7 {[%clk 0:00:08]}  Qd4+ {[%clk 0:00:03]} 56. Ka8 {[%clk 0:00:06]}  Qe4+ {[%clk 0:00:04]} 57. Ka7 {[%clk 0:00:05]}  Qe3+ {[%clk 0:00:04]} 58. Ka8 {[%clk 0:00:05]}  Qf3+ {[%clk 0:00:05]} 59. Ka7 {[%clk 0:00:05]}  Qf2+ {[%clk 0:00:05]} 60. Ka8 {[%clk 0:00:06]}  Qg2+ {[%clk 0:00:06]} 61. Ka7 {[%clk 0:00:06]}  Qg1+ {[%clk 0:00:06]} 62. Ka8 {[%clk 0:00:06]}  Qg8+ {[%clk 0:00:07]} 63. Ka7 {[%clk 0:00:06]}  Qb8# {[%clk 0:00:07]} 0-1


[Site "https://www.chess.com"]

[Event "Titled Tuesday Blitz November 14 Late 2023"]
[White "angelgab3"]
[Black "Brodsky, David"]
[BlackFideId "2073250"]
[WhiteElo "2555"]
[BlackElo "2796"]
[Result "1-0"]
[Round "4"]
[TimeControl "180+1"]
[Date "2023.11.14"]
[WhiteClock "0:00:15"]
[BlackClock "0:00:03"]
[Board "36"]

1. e4 {[%clk 0:03:00]}  e5 {[%clk 0:02:59]} 2. Nf3 {[%clk 0:03:01]}  Nc6 {[%clk 0:02:58]} 3. Bb5 {[%clk 0:03:01]}  a6 {[%clk 0:02:56]} 4. Ba4 {[%clk 0:03:02]}  Nf6 {[%clk 0:02:57]} 5. O-O {[%clk 0:03:02]}  Be7 {[%clk 0:02:56]} 6. Re1 {[%clk 0:03:02]}  b5 {[%clk 0:02:57]} 7. Bb3 {[%clk 0:03:03]}  O-O {[%clk 0:02:57]} 8. d4 {[%clk 0:03:03]}  d6 {[%clk 0:02:54]} 9. c3 {[%clk 0:03:02]}  Bg4 {[%clk 0:02:53]} 10. d5 {[%clk 0:03:01]}  Na5 {[%clk 0:02:52]} 11. Bc2 {[%clk 0:03:01]}  c6 {[%clk 0:02:51]} 12. h3 {[%clk 0:03:01]}  Bh5 {[%clk 0:02:48]} 13. dxc6 {[%clk 0:03:01]}  Qc7 {[%clk 0:02:47]} 14. Nbd2 {[%clk 0:03:01]}  Rad8 {[%clk 0:02:44]} 15. a4 {[%clk 0:02:34]}  d5 {[%clk 0:02:32]} 16. exd5 {[%clk 0:02:32]}  Nxd5 {[%clk 0:02:25]} 17. axb5 {[%clk 0:02:29]}  axb5 {[%clk 0:02:25]} 18. Qe2 {[%clk 0:02:28]}  Nxc6 {[%clk 0:01:37]} 19. Qxb5 {[%clk 0:02:19]}  Nf4 {[%clk 0:01:23]} 20. Qc4 {[%clk 0:02:03]}  Rc8 {[%clk 0:00:51]} 21. Nxe5 {[%clk 0:01:34]}  Ne2+ {[%clk 0:00:50]} 22. Rxe2 {[%clk 0:01:35]}  Bxe2 {[%clk 0:00:49]} 23. Qe4 {[%clk 0:01:35]}  f5 {[%clk 0:00:29]} 24. Qd5+ {[%clk 0:01:20]}  Kh8 {[%clk 0:00:30]} 25. Nf7+ {[%clk 0:01:20]}  Rxf7 {[%clk 0:00:30]} 26. Qxf7 {[%clk 0:01:21]}  Rf8 {[%clk 0:00:25]} 27. Qe6 {[%clk 0:01:17]}  Ne5 {[%clk 0:00:21]} 28. Bxf5 {[%clk 0:00:33]}  Bc5 {[%clk 0:00:21]} 29. Ne4 {[%clk 0:00:28]}  Bc4 {[%clk 0:00:13]} 30. Nxc5 {[%clk 0:00:29]}  Qxc5 {[%clk 0:00:04]} 31. Be3 {[%clk 0:00:20]}  Qc7 {[%clk 0:00:04]} 32. Bb6 {[%clk 0:00:14]}  Bxe6 {[%clk 0:00:04]} 33. Bxc7 {[%clk 0:00:13]}  Rxf5 {[%clk 0:00:04]} 34. Ra8+ {[%clk 0:00:13]}  Bg8 {[%clk 0:00:04]} 35. Ra5 {[%clk 0:00:13]}  Nf3+ {[%clk 0:00:03]} 36. gxf3 {[%clk 0:00:14]}  Rxa5 {[%clk 0:00:03]} 37. Bxa5 {[%clk 0:00:14]}  Bd5 {[%clk 0:00:04]} 38. f4 {[%clk 0:00:14]}  Kg8 {[%clk 0:00:04]} 39. Kf1 {[%clk 0:00:14]}  Kf7 {[%clk 0:00:05]} 40. Ke2 {[%clk 0:00:14]}  Ke6 {[%clk 0:00:06]} 41. Ke3 {[%clk 0:00:15]}  Bg2 {[%clk 0:00:06]} 42. h4 {[%clk 0:00:14]}  Kd5 {[%clk 0:00:07]} 43. b3 {[%clk 0:00:15]}  h5 {[%clk 0:00:07]} 44. Bb6 {[%clk 0:00:12]}  g6 {[%clk 0:00:07]} 45. Bd4 {[%clk 0:00:13]}  Bh3 {[%clk 0:00:07]} 46. c4+ {[%clk 0:00:13]}  Kc6 {[%clk 0:00:07]} 47. Kd3 {[%clk 0:00:14]}  Bf5+ {[%clk 0:00:07]} 48. Kc3 {[%clk 0:00:15]}  Kd6 {[%clk 0:00:07]} 49. b4 {[%clk 0:00:15]}  Kc6 {[%clk 0:00:08]} 50. b5+ {[%clk 0:00:15]}  Kd6 {[%clk 0:00:08]} 51. Kb4 {[%clk 0:00:16]}  Bd3 {[%clk 0:00:08]} 52. Be3 {[%clk 0:00:16]}  Be2 {[%clk 0:00:08]} 53. Bd4 {[%clk 0:00:16]}  Bf1 {[%clk 0:00:08]} 54. c5+ {[%clk 0:00:16]}  Kd5 {[%clk 0:00:08]} 55. Be5 {[%clk 0:00:17]}  Be2 {[%clk 0:00:07]} 56. c6 {[%clk 0:00:15]}  Ke6 {[%clk 0:00:06]} 57. Kc5 {[%clk 0:00:14]}  Bd3 {[%clk 0:00:03]} 58. b6 {[%clk 0:00:15]} 1-0


[Site "https://www.chess.com"]

[Event "Titled Tuesday Blitz November 14 Late 2023"]
[White "Holt, Conrad"]
[Black "Kuznecovs, Nikita"]
[WhiteFideId "2034387"]
[BlackFideId "11604557"]
[WhiteElo "2784"]
[BlackElo "2551"]
[Result "1-0"]
[Round "4"]
[TimeControl "180+1"]
[Date "2023.11.14"]
[WhiteClock "0:00:05"]
[BlackClock "0:00:09"]
[Board "38"]

1. a3 {[%clk 0:02:56]}  d5 {[%clk 0:02:57]} 2. Nf3 {[%clk 0:02:54]}  Bf5 {[%clk 0:02:57]} 3. g3 {[%clk 0:02:52]}  Nf6 {[%clk 0:02:56]} 4. Bg2 {[%clk 0:02:52]}  e6 {[%clk 0:02:56]} 5. c4 {[%clk 0:02:51]}  c6 {[%clk 0:02:54]} 6. O-O {[%clk 0:02:47]}  h6 {[%clk 0:02:48]} 7. d3 {[%clk 0:02:40]}  Nbd7 {[%clk 0:02:45]} 8. b4 {[%clk 0:02:34]}  a5 {[%clk 0:02:37]} 9. b5 {[%clk 0:02:32]}  Bc5 {[%clk 0:02:19]} 10. Nc3 {[%clk 0:02:25]}  O-O {[%clk 0:02:12]} 11. Bf4 {[%clk 0:02:06]}  Re8 {[%clk 0:02:11]} 12. d4 {[%clk 0:02:03]}  Bf8 {[%clk 0:02:00]} 13. bxc6 {[%clk 0:01:59]}  bxc6 {[%clk 0:02:00]} 14. c5 {[%clk 0:01:59]}  Ne4 {[%clk 0:01:50]} 15. Na4 {[%clk 0:01:57]}  g5 {[%clk 0:01:36]} 16. Be3 {[%clk 0:01:52]}  Bg7 {[%clk 0:01:30]} 17. Nd2 {[%clk 0:01:24]}  Nxd2 {[%clk 0:01:13]} 18. Qxd2 {[%clk 0:01:23]}  Qb8 {[%clk 0:01:14]} 19. h4 {[%clk 0:01:16]}  Qb3 {[%clk 0:00:45]} 20. Nb6 {[%clk 0:01:16]}  Nxb6 {[%clk 0:00:44]} 21. cxb6 {[%clk 0:01:16]}  Qxb6 {[%clk 0:00:39]} 22. hxg5 {[%clk 0:01:14]}  hxg5 {[%clk 0:00:40]} 23. Rac1 {[%clk 0:00:28]}  f6 {[%clk 0:00:31]} 24. Rc5 {[%clk 0:00:20]}  Bf8 {[%clk 0:00:31]} 25. Rc3 {[%clk 0:00:19]}  Rec8 {[%clk 0:00:27]} 26. Rfc1 {[%clk 0:00:18]}  Rab8 {[%clk 0:00:28]} 27. f3 {[%clk 0:00:11]}  Kf7 {[%clk 0:00:23]} 28. g4 {[%clk 0:00:11]}  Bg6 {[%clk 0:00:21]} 29. f4 {[%clk 0:00:11]}  gxf4 {[%clk 0:00:16]} 30. Bxf4 {[%clk 0:00:12]}  Rb7 {[%clk 0:00:16]} 31. g5 {[%clk 0:00:12]}  Be7 {[%clk 0:00:14]} 32. Rf1 {[%clk 0:00:11]}  Bf5 {[%clk 0:00:14]} 33. gxf6 {[%clk 0:00:04]}  Bxf6 {[%clk 0:00:15]} 34. e3 {[%clk 0:00:04]}  Rg8 {[%clk 0:00:14]} 35. Be5 {[%clk 0:00:02]}  Bxe5 {[%clk 0:00:14]} 36. dxe5 {[%clk 0:00:03]}  Qb2 {[%clk 0:00:15]} 37. Qxb2 {[%clk 0:00:02]}  Rxb2 {[%clk 0:00:15]} 38. Rf2 {[%clk 0:00:03]}  Rxf2 {[%clk 0:00:16]} 39. Kxf2 {[%clk 0:00:04]}  Rc8 {[%clk 0:00:15]} 40. Bf3 {[%clk 0:00:04]}  c5 {[%clk 0:00:15]} 41. Kg3 {[%clk 0:00:03]}  Ke7 {[%clk 0:00:15]} 42. Kf4 {[%clk 0:00:04]}  Kd7 {[%clk 0:00:16]} 43. Bxd5 {[%clk 0:00:04]}  exd5 {[%clk 0:00:15]} 44. Kxf5 {[%clk 0:00:04]}  Rf8+ {[%clk 0:00:16]} 45. Kg4 {[%clk 0:00:04]}  Kc6 {[%clk 0:00:16]} 46. Kg5 {[%clk 0:00:03]}  d4 {[%clk 0:00:17]} 47. exd4 {[%clk 0:00:03]}  Kd5 {[%clk 0:00:16]} 48. Rxc5+ {[%clk 0:00:04]}  Kxd4 {[%clk 0:00:17]} 49. Rxa5 {[%clk 0:00:05]}  Ke4 {[%clk 0:00:17]} 50. e6 {[%clk 0:00:05]}  Kd4 {[%clk 0:00:09]} 51. e7 {[%clk 0:00:05]} 1-0


[Site "https://www.chess.com"]

[Event "Titled Tuesday Blitz November 14 Late 2023"]
[White "Pinheiro, Iung Alicio de O."]
[Black "Borsuk, Konstantin"]
[WhiteFideId "2104350"]
[BlackFideId "14113406"]
[WhiteElo "2549"]
[BlackElo "2781"]
[Result "1-0"]
[Round "4"]
[TimeControl "180+1"]
[Date "2023.11.14"]
[WhiteClock "0:00:14"]
[BlackClock "0:00:00"]
[Board "39"]

1. Nf3 {[%clk 0:02:54]}  b6 {[%clk 0:02:59]} 2. b3 {[%clk 0:02:51]}  Bb7 {[%clk 0:02:59]} 3. Bb2 {[%clk 0:02:52]}  Nf6 {[%clk 0:02:59]} 4. g3 {[%clk 0:02:51]}  g6 {[%clk 0:02:59]} 5. Bg2 {[%clk 0:02:50]}  Bg7 {[%clk 0:03:00]} 6. O-O {[%clk 0:02:51]}  O-O {[%clk 0:03:00]} 7. c4 {[%clk 0:02:51]}  d6 {[%clk 0:03:00]} 8. d4 {[%clk 0:02:50]}  Nbd7 {[%clk 0:03:00]} 9. Nc3 {[%clk 0:02:49]}  Ne4 {[%clk 0:03:00]} 10. Qc2 {[%clk 0:02:43]}  Nxc3 {[%clk 0:02:56]} 11. Bxc3 {[%clk 0:02:42]}  e6 {[%clk 0:02:56]} 12. e4 {[%clk 0:02:37]}  a6 {[%clk 0:02:56]} 13. Rad1 {[%clk 0:02:35]}  Qe7 {[%clk 0:02:54]} 14. Rfe1 {[%clk 0:02:34]}  b5 {[%clk 0:02:53]} 15. Nd2 {[%clk 0:02:06]}  Rfc8 {[%clk 0:02:50]} 16. h4 {[%clk 0:02:03]}  c5 {[%clk 0:02:36]} 17. d5 {[%clk 0:01:59]}  Bxc3 {[%clk 0:02:28]} 18. Qxc3 {[%clk 0:01:57]}  e5 {[%clk 0:02:27]} 19. Bh3 {[%clk 0:01:50]}  Rc7 {[%clk 0:02:21]} 20. Bxd7 {[%clk 0:01:45]}  Qxd7 {[%clk 0:02:17]} 21. f4 {[%clk 0:01:37]}  Re8 {[%clk 0:02:12]} 22. Qf3 {[%clk 0:01:34]}  f6 {[%clk 0:02:04]} 23. f5 {[%clk 0:01:32]}  Qg7 {[%clk 0:01:59]} 24. Kh2 {[%clk 0:01:31]}  Bc8 {[%clk 0:01:55]} 25. Rg1 {[%clk 0:01:28]}  Rf7 {[%clk 0:01:43]} 26. g4 {[%clk 0:01:20]}  g5 {[%clk 0:01:43]} 27. Qh3 {[%clk 0:01:09]}  h6 {[%clk 0:01:37]} 28. Kg3 {[%clk 0:01:03]}  Kf8 {[%clk 0:01:31]} 29. Rh1 {[%clk 0:01:03]}  Ke7 {[%clk 0:01:31]} 30. Kf3 {[%clk 0:01:02]}  Bd7 {[%clk 0:01:29]} 31. Ke3 {[%clk 0:01:01]}  Rg8 {[%clk 0:01:27]} 32. Kd3 {[%clk 0:00:48]}  Qf8 {[%clk 0:01:25]} 33. Nf3 {[%clk 0:00:44]}  Qd8 {[%clk 0:01:21]} 34. hxg5 {[%clk 0:00:42]}  hxg5 {[%clk 0:01:21]} 35. Nd2 {[%clk 0:00:40]}  Qa5 {[%clk 0:01:21]} 36. Ra1 {[%clk 0:00:39]}  Rb8 {[%clk 0:01:17]} 37. Qh6 {[%clk 0:00:35]}  Qa3 {[%clk 0:01:16]} 38. Qg6 {[%clk 0:00:27]}  Qb2 {[%clk 0:01:13]} 39. Rh7 {[%clk 0:00:25]}  Be8 {[%clk 0:01:08]} 40. Rah1 {[%clk 0:00:22]}  Qd4+ {[%clk 0:00:57]} 41. Ke2 {[%clk 0:00:22]}  bxc4 {[%clk 0:00:56]} 42. Rxf7+ {[%clk 0:00:21]}  Bxf7 {[%clk 0:00:55]} 43. Rh7 {[%clk 0:00:21]}  Rf8 {[%clk 0:00:44]} 44. bxc4 {[%clk 0:00:19]}  Qg1 {[%clk 0:00:41]} 45. Kf3 {[%clk 0:00:14]}  Qd1+ {[%clk 0:00:38]} 46. Ke3 {[%clk 0:00:14]}  Qxg4 {[%clk 0:00:39]} 47. Qg7 {[%clk 0:00:13]}  Qg1+ {[%clk 0:00:35]} 48. Kd3 {[%clk 0:00:14]}  Qd4+ {[%clk 0:00:34]} 49. Ke2 {[%clk 0:00:14]}  Qb2 {[%clk 0:00:32]} 50. Rh6 {[%clk 0:00:14]}  Qb6 {[%clk 0:00:27]} 51. Qxf6+ {[%clk 0:00:15]}  Kd7 {[%clk 0:00:27]} 52. Qg7 {[%clk 0:00:15]}  Qd8 {[%clk 0:00:26]} 53. Rf6 {[%clk 0:00:13]}  Qe7 {[%clk 0:00:26]} 54. Qxg5 {[%clk 0:00:12]}  Be8 {[%clk 0:00:24]} 55. Rg6 {[%clk 0:00:11]}  Bxg6 {[%clk 0:00:24]} 56. Qxg6 {[%clk 0:00:12]}  Qf7 {[%clk 0:00:24]} 57. Qh6 {[%clk 0:00:11]}  Rg8 {[%clk 0:00:23]} 58. Nf3 {[%clk 0:00:11]}  Kc7 {[%clk 0:00:23]} 59. Qe6 {[%clk 0:00:10]}  Qg7 {[%clk 0:00:21]} 60. f6 {[%clk 0:00:10]}  Qg2+ {[%clk 0:00:22]} 61. Ke3 {[%clk 0:00:10]}  Rd8 {[%clk 0:00:21]} 62. f7 {[%clk 0:00:10]}  Qg7 {[%clk 0:00:08]} 63. Qe7+ {[%clk 0:00:10]}  Rd7 {[%clk 0:00:08]} 64. f8=Q {[%clk 0:00:10]}  Qxe7 {[%clk 0:00:07]} 65. Qa8 {[%clk 0:00:10]}  Qf7 {[%clk 0:00:03]} 66. Qxa6 {[%clk 0:00:09]}  Qf4+ {[%clk 0:00:02]} 67. Kf2 {[%clk 0:00:09]}  Kd8 {[%clk 0:00:03]} 68. Qa8+ {[%clk 0:00:09]}  Ke7 {[%clk 0:00:03]} 69. Qg8 {[%clk 0:00:09]}  Qf7 {[%clk 0:00:02]} 70. Qg5+ {[%clk 0:00:09]}  Ke8 {[%clk 0:00:02]} 71. Ke3 {[%clk 0:00:09]}  Re7 {[%clk 0:00:03]} 72. Qg4 {[%clk 0:00:08]}  Qf4+ {[%clk 0:00:03]} 73. Qxf4 {[%clk 0:00:09]}  exf4+ {[%clk 0:00:04]} 74. Kxf4 {[%clk 0:00:09]}  Rf7+ {[%clk 0:00:04]} 75. Ke3 {[%clk 0:00:10]}  Ke7 {[%clk 0:00:05]} 76. e5 {[%clk 0:00:09]}  Rf8 {[%clk 0:00:05]} 77. Ke4 {[%clk 0:00:08]}  Ra8 {[%clk 0:00:05]} 78. exd6+ {[%clk 0:00:08]}  Kxd6 {[%clk 0:00:05]} 79. Ng5 {[%clk 0:00:08]}  Rxa2 {[%clk 0:00:05]} 80. Nf7+ {[%clk 0:00:09]}  Kd7 {[%clk 0:00:05]} 81. Ne5+ {[%clk 0:00:10]}  Kd6 {[%clk 0:00:06]} 82. Nf7+ {[%clk 0:00:10]}  Ke7 {[%clk 0:00:06]} 83. Ne5 {[%clk 0:00:10]}  Rc2 {[%clk 0:00:07]} 84. Kf5 {[%clk 0:00:11]}  Kd6 {[%clk 0:00:06]} 85. Nf7+ {[%clk 0:00:11]}  Kc7 {[%clk 0:00:06]} 86. Ne5 {[%clk 0:00:12]}  Re2 {[%clk 0:00:05]} 87. Ke6 {[%clk 0:00:12]}  Kd8 {[%clk 0:00:05]} 88. d6 {[%clk 0:00:13]}  Kc8 {[%clk 0:00:05]} 89. Kd5 {[%clk 0:00:13]}  Kb7 {[%clk 0:00:04]} 90. Nd7 {[%clk 0:00:12]}  Rd2+ {[%clk 0:00:03]} 91. Kxc5 {[%clk 0:00:12]}  Rd1 {[%clk 0:00:01]} 92. Nf6 {[%clk 0:00:12]}  Kc8 {[%clk 0:00:02]} 93. Kc6 {[%clk 0:00:11]}  Kd8 {[%clk 0:00:02]} 94. c5 {[%clk 0:00:12]}  Ra1 {[%clk 0:00:02]} 95. Nd5 {[%clk 0:00:12]}  Ra6+ {[%clk 0:00:02]} 96. Nb6 {[%clk 0:00:12]}  Ra1 {[%clk 0:00:02]} 97. Kb7 {[%clk 0:00:13]}  Rd1 {[%clk 0:00:02]} 98. c6 {[%clk 0:00:12]}  Rxd6 {[%clk 0:00:02]} 99. c7+ {[%clk 0:00:13]}  Ke7 {[%clk 0:00:02]} 100. c8=Q {[%clk 0:00:14]}  Kf6 {[%clk 0:00:02]} 101. Qf8+ {[%clk 0:00:13]}  Ke5 {[%clk 0:00:00]} 102. Nc4+ {[%clk 0:00:14]} 1-0


[Site "https://www.chess.com"]

[Event "Titled Tuesday Blitz November 14 Late 2023"]
[White "Karacsonyi, Gellert"]
[Black "Womacka, Mathias"]
[WhiteFideId "764620"]
[BlackFideId "4611390"]
[WhiteElo "2759"]
[BlackElo "2531"]
[Result "1-0"]
[Round "4"]
[TimeControl "180+1"]
[Date "2023.11.14"]
[WhiteClock "0:00:09"]
[BlackClock "0:00:00"]
[Board "44"]

1. e4 {[%clk 0:03:00]}  c5 {[%clk 0:03:00]} 2. Nf3 {[%clk 0:03:01]}  d6 {[%clk 0:03:01]} 3. d4 {[%clk 0:03:01]}  cxd4 {[%clk 0:03:01]} 4. Nxd4 {[%clk 0:03:02]}  Nf6 {[%clk 0:03:00]} 5. Nc3 {[%clk 0:03:03]}  a6 {[%clk 0:03:00]} 6. Bc4 {[%clk 0:03:03]}  e6 {[%clk 0:02:59]} 7. O-O {[%clk 0:03:04]}  b5 {[%clk 0:02:58]} 8. Bb3 {[%clk 0:03:03]}  Be7 {[%clk 0:02:58]} 9. Qf3 {[%clk 0:03:04]}  Qb6 {[%clk 0:02:55]} 10. Be3 {[%clk 0:03:04]}  Qb7 {[%clk 0:02:55]} 11. Qg3 {[%clk 0:03:04]}  b4 {[%clk 0:02:54]} 12. Na4 {[%clk 0:03:04]}  Nbd7 {[%clk 0:02:55]} 13. f3 {[%clk 0:03:04]}  O-O {[%clk 0:02:54]} 14. a3 {[%clk 0:03:05]}  a5 {[%clk 0:02:44]} 15. axb4 {[%clk 0:03:02]}  axb4 {[%clk 0:02:44]} 16. Qf2 {[%clk 0:03:00]}  Ne5 {[%clk 0:02:40]} 17. h3 {[%clk 0:02:56]}  Bd7 {[%clk 0:02:23]} 18. Ne2 {[%clk 0:02:47]}  Bb5 {[%clk 0:02:04]} 19. Nb6 {[%clk 0:02:35]}  Rxa1 {[%clk 0:02:02]} 20. Rxa1 {[%clk 0:02:36]}  Bd8 {[%clk 0:01:48]} 21. c4 {[%clk 0:02:16]}  Nd3 {[%clk 0:01:38]} 22. Qf1 {[%clk 0:02:05]}  Bxb6 {[%clk 0:01:37]} 23. Nd4 {[%clk 0:02:05]}  Bxc4 {[%clk 0:01:16]} 24. Bxc4 {[%clk 0:02:01]}  Nxb2 {[%clk 0:01:17]} 25. Ba6 {[%clk 0:01:55]}  Qa7 {[%clk 0:01:13]} 26. Bb5 {[%clk 0:01:33]}  Bxd4 {[%clk 0:01:07]} 27. Rxa7 {[%clk 0:01:33]}  Bxe3+ {[%clk 0:01:08]} 28. Kh2 {[%clk 0:01:33]}  Bxa7 {[%clk 0:01:08]} 29. Qe2 {[%clk 0:01:23]}  Bd4 {[%clk 0:01:05]} 30. Qd2 {[%clk 0:01:24]}  e5 {[%clk 0:01:04]} 31. Qxb4 {[%clk 0:01:21]}  h5 {[%clk 0:00:52]} 32. h4 {[%clk 0:01:19]}  Rb8 {[%clk 0:00:48]} 33. Qa5 {[%clk 0:01:16]}  Rc8 {[%clk 0:00:45]} 34. Qa6 {[%clk 0:00:58]}  Rc5 {[%clk 0:00:38]} 35. Be2 {[%clk 0:00:42]}  Rc2 {[%clk 0:00:37]} 36. Bb5 {[%clk 0:00:39]}  g6 {[%clk 0:00:30]} 37. Qxd6 {[%clk 0:00:37]}  Kg7 {[%clk 0:00:30]} 38. Qe7 {[%clk 0:00:35]}  Nd1 {[%clk 0:00:27]} 39. Ba4 {[%clk 0:00:32]}  Rd2 {[%clk 0:00:15]} 40. Bb3 {[%clk 0:00:32]}  Nh7 {[%clk 0:00:08]} 41. Qxf7+ {[%clk 0:00:32]}  Kh6 {[%clk 0:00:08]} 42. Qg8 {[%clk 0:00:20]}  Ne3 {[%clk 0:00:07]} 43. Bf7 {[%clk 0:00:21]}  Rxg2+ {[%clk 0:00:04]} 44. Kh3 {[%clk 0:00:21]}  Rg1 {[%clk 0:00:04]} 45. Qh8 {[%clk 0:00:19]}  Nf1 {[%clk 0:00:00]} 46. Qxh7+ {[%clk 0:00:09]} 1-0


[Site "https://www.chess.com"]

[Event "Titled Tuesday Blitz November 14 Late 2023"]
[White "Hambleton, Aman"]
[Black "Jovic, Stanoje"]
[WhiteFideId "2606577"]
[BlackFideId "905020"]
[WhiteElo "2718"]
[BlackElo "2529"]
[Result "1-0"]
[Round "4"]
[TimeControl "180+1"]
[Date "2023.11.14"]
[WhiteClock "0:00:06"]
[BlackClock "0:00:00"]
[Board "46"]

1. d4 {[%clk 0:03:00]}  Nf6 {[%clk 0:02:59]} 2. Bf4 {[%clk 0:02:54]}  d5 {[%clk 0:02:58]} 3. e3 {[%clk 0:02:54]}  e6 {[%clk 0:02:59]} 4. Nf3 {[%clk 0:02:54]}  Bd6 {[%clk 0:02:59]} 5. Nbd2 {[%clk 0:02:55]}  O-O {[%clk 0:02:58]} 6. Bd3 {[%clk 0:02:56]}  b6 {[%clk 0:02:58]} 7. O-O {[%clk 0:02:56]}  c5 {[%clk 0:02:56]} 8. c3 {[%clk 0:02:56]}  Ba6 {[%clk 0:02:56]} 9. Bxa6 {[%clk 0:02:55]}  Nxa6 {[%clk 0:02:57]} 10. Bxd6 {[%clk 0:02:56]}  Qxd6 {[%clk 0:02:56]} 11. Ne5 {[%clk 0:02:57]}  Nd7 {[%clk 0:02:52]} 12. f4 {[%clk 0:02:57]}  f6 {[%clk 0:02:52]} 13. Nxd7 {[%clk 0:02:47]}  Qxd7 {[%clk 0:02:51]} 14. Qg4 {[%clk 0:02:48]}  Rad8 {[%clk 0:02:38]} 15. Rf2 {[%clk 0:02:42]}  Nc7 {[%clk 0:02:37]} 16. Re1 {[%clk 0:01:54]}  Ne8 {[%clk 0:02:35]} 17. f5 {[%clk 0:01:55]}  e5 {[%clk 0:02:28]} 18. Nf3 {[%clk 0:01:44]}  e4 {[%clk 0:02:02]} 19. Nd2 {[%clk 0:01:37]}  cxd4 {[%clk 0:02:00]} 20. exd4 {[%clk 0:01:36]}  Nd6 {[%clk 0:01:58]} 21. Nf1 {[%clk 0:01:36]}  Kh8 {[%clk 0:01:46]} 22. Ne3 {[%clk 0:01:33]}  Qb5 {[%clk 0:01:36]} 23. Qe2 {[%clk 0:01:21]}  Qxe2 {[%clk 0:01:21]} 24. Rfxe2 {[%clk 0:01:07]}  Nb5 {[%clk 0:01:13]} 25. a4 {[%clk 0:01:03]}  Nc7 {[%clk 0:01:12]} 26. Kf2 {[%clk 0:00:48]}  Rd7 {[%clk 0:01:10]} 27. Rc2 {[%clk 0:00:45]}  Na6 {[%clk 0:00:59]} 28. g4 {[%clk 0:00:29]}  Rc8 {[%clk 0:00:54]} 29. Rd2 {[%clk 0:00:26]}  Kg8 {[%clk 0:00:52]} 30. h4 {[%clk 0:00:21]}  Kf7 {[%clk 0:00:47]} 31. Rg1 {[%clk 0:00:20]}  Ke7 {[%clk 0:00:45]} 32. g5 {[%clk 0:00:19]}  fxg5 {[%clk 0:00:44]} 33. Rxg5 {[%clk 0:00:14]}  Kf8 {[%clk 0:00:41]} 34. f6 {[%clk 0:00:05]}  gxf6 {[%clk 0:00:36]} 35. Rxd5 {[%clk 0:00:05]}  Rcc7 {[%clk 0:00:32]} 36. Rf5 {[%clk 0:00:03]}  Rf7 {[%clk 0:00:28]} 37. d5 {[%clk 0:00:02]}  Nc5 {[%clk 0:00:26]} 38. d6 {[%clk 0:00:02]}  Rcd7 {[%clk 0:00:25]} 39. Ke2 {[%clk 0:00:02]}  Nd3 {[%clk 0:00:24]} 40. Nc4 {[%clk 0:00:01]}  Kg7 {[%clk 0:00:21]} 41. Ke3 {[%clk 0:00:02]}  Kg6 {[%clk 0:00:19]} 42. Kxe4 {[%clk 0:00:01]}  Nc5+ {[%clk 0:00:20]} 43. Kf4 {[%clk 0:00:02]}  Ne6+ {[%clk 0:00:20]} 44. Ke4 {[%clk 0:00:02]}  Nc5+ {[%clk 0:00:19]} 45. Rxc5 {[%clk 0:00:02]}  bxc5 {[%clk 0:00:19]} 46. Kd5 {[%clk 0:00:02]}  f5 {[%clk 0:00:18]} 47. Ne5+ {[%clk 0:00:02]}  Kf6 {[%clk 0:00:18]} 48. Nxf7 {[%clk 0:00:02]}  Rxf7 {[%clk 0:00:16]} 49. Kc6 {[%clk 0:00:02]}  f4 {[%clk 0:00:14]} 50. d7 {[%clk 0:00:02]}  Rxd7 {[%clk 0:00:15]} 51. Kxd7 {[%clk 0:00:02]}  Ke5 {[%clk 0:00:14]} 52. b4 {[%clk 0:00:03]}  c4 {[%clk 0:00:14]} 53. b5 {[%clk 0:00:03]}  Ke4 {[%clk 0:00:15]} 54. a5 {[%clk 0:00:04]}  Ke3 {[%clk 0:00:15]} 55. Rd6 {[%clk 0:00:04]}  f3 {[%clk 0:00:15]} 56. b6 {[%clk 0:00:05]}  axb6 {[%clk 0:00:14]} 57. axb6 {[%clk 0:00:06]}  f2 {[%clk 0:00:00]} 58. Rf6 {[%clk 0:00:06]} 1-0


[Site "https://www.chess.com"]